fUST/lending_fUST_20260417
["ID","MTS","AMOUNT","RATE_DAILY","PERIOD"]
[420628989,1776372640787,-7069.32,8.219e-05,2]
[420628991,1776372640796,-335.96096963,8.219e-05,2]
[420628993,1776372640806,-500.0,8.219e-05,2]
[420628996,1776372640816,-914.05,8.219e-05,2]
[420628997,1776372640827,-12938.94,8.219e-05,2]
[420628999,1776372640837,-1697.58,8.219e-05,2]
[420629001,1776372640847,-478.64532485,8.219e-05,2]
[420629003,1776372640855,-769.57,8.219e-05,2]
[420629005,1776372640865,-655.68,8.219e-05,2]
[420629007,1776372640874,-8592.3,8.219e-05,2]
[420629009,1776372640883,-707.34,8.219e-05,2]
[420629011,1776372640893,-1000.0,8.219e-05,2]
[420629013,1776372640903,-6980.53,8.219e-05,2]
[420629015,1776372640912,-500.0,8.219e-05,2]
[420629017,1776372640921,-3251.14,8.219e-05,2]
[420629019,1776372640930,-500.0,8.219e-05,2]
[420629021,1776372640939,-500.0,8.219e-05,2]
[420629023,1776372640949,-1018.33,8.219e-05,2]
[420629025,1776372640958,-6334.52,8.219e-05,2]
[420629027,1776372640967,-500.0,8.219e-05,2]
[420629029,1776372640975,-500.0,8.219e-05,2]
[420629031,1776372640984,-645.0,8.23e-05,2]
[420629033,1776372640994,-1408.0,8.23e-05,2]
[420629035,1776372641003,-225.46210187,8.235e-05,2]
[420629037,1776372641014,-160.0,8.273e-05,2]
[420629039,1776372641023,-602.00196789,8.349e-05,2]
[420629041,1776372641032,-500.0,8.349e-05,2]
[420629043,1776372641042,-500.0,8.349e-05,2]
[420629045,1776372641051,-500.0,8.349e-05,2]
[420629047,1776372641060,-500.95495457,8.349e-05,2]
[420629049,1776372641069,-1332.9244,8.493e-05,2]
[420629051,1776372641078,-500.0,8.493e-05,2]
[420629053,1776372641087,-287.48940176,8.493e-05,2]
[420629055,1776372641096,-500.0,8.493e-05,2]
[420629057,1776372641105,-516.99,8.493e-05,2]
[420629059,1776372641114,-500.0,8.493e-05,2]
[420629061,1776372641124,-500.0,8.493e-05,2]
[420629063,1776372641133,-500.0,8.493e-05,2]
[420629065,1776372641142,-1072.02,8.493e-05,2]
[420629067,1776372641152,-500.0,8.493e-05,2]
[420629069,1776372641161,-500.0,8.493e-05,2]
[420629071,1776372641170,-1181.47,8.493e-05,2]
[420629073,1776372641180,-500.0,8.493e-05,2]
[420629075,1776372641190,-500.0,8.493e-05,2]
[420629077,1776372641199,-500.0,8.493e-05,2]
[420629079,1776372641211,-1002.16,8.493e-05,2]
[420629081,1776372641220,-602.86,8.493e-05,2]
[420629083,1776372641229,-573.7822,8.493e-05,2]
[420629085,1776372641238,-500.0,8.493e-05,2]
[420629087,1776372641247,-154.50017795,8.493e-05,2]
[420629089,1776372641256,-617.38271109,8.493e-05,2]
[420629091,1776372641265,-500.0,8.493e-05,2]
[420629093,1776372641274,-1183.2,8.493e-05,2]
[420629095,1776372641283,-500.0,8.493e-05,2]
[420629097,1776372641292,-500.0,8.493e-05,2]
[420629099,1776372641301,-500.0,8.493e-05,2]
[420629101,1776372641310,-2025.12,8.493e-05,2]
[420629103,1776372641320,-500.0,8.493e-05,2]
[420629105,1776372641329,-528.32,8.493e-05,2]
[420629107,1776372641338,-909.41,8.493e-05,2]
[420629109,1776372641347,-500.0,8.493e-05,2]
[420629111,1776372641357,-971.66,8.493e-05,2]
[420629113,1776372641366,-500.0,8.493e-05,2]
[420629115,1776372641376,-511.29,8.493e-05,2]
[420629116,1776372641386,-796.63,8.493e-05,2]
[420629131,1776372641552,-500.0,8.493e-05,2]
[420629133,1776372641564,-500.0,8.493e-05,2]
[420629134,1776372641574,-1614.92,8.493e-05,2]
[420629135,1776372641583,-1841.84,8.493e-05,2]
[420629136,1776372641593,-641.21,8.493e-05,2]
[420629137,1776372641603,-1252.37,8.493e-05,2]
[420629138,1776372641612,-500.0,8.493e-05,2]
[420629139,1776372641621,-500.0,8.493e-05,2]
[420629140,1776372641631,-578.62,8.493e-05,2]
[420629141,1776372641640,-500.0,8.493e-05,2]
[420629142,1776372641649,-573.51,8.493e-05,2]
[420629143,1776372641660,-500.0,8.493e-05,2]
[420629144,1776372641669,-500.0,8.493e-05,2]
[420629145,1776372641679,-828.64,8.493e-05,2]
[420629146,1776372641688,-1499.55,8.493e-05,2]
[420629147,1776372641698,-500.0,8.493e-05,2]
[420629148,1776372641707,-500.0,8.493e-05,2]
[420629149,1776372641718,-500.0,8.493e-05,2]
[420629150,1776372641727,-261.7472149,8.493e-05,2]
[420629151,1776372641983,-238.2527851,8.493e-05,2]
[420629152,1776372641994,-594.04,8.493e-05,2]
[420629153,1776372642003,-967.34,8.493e-05,2]
[420629154,1776372642012,-500.0,8.493e-05,2]
[420629155,1776372642022,-500.0,8.493e-05,2]
[420629156,1776372642032,-500.0,8.493e-05,2]
[420629157,1776372642043,-532.52,8.493e-05,2]
[420629158,1776372642053,-500.0,8.493e-05,2]
[420629159,1776372642063,-500.0,8.493e-05,2]
[420629160,1776372642072,-500.0,8.493e-05,2]
[420629161,1776372642081,-500.0,8.493e-05,2]
[420629162,1776372642091,-500.0,8.493e-05,2]
[420629163,1776372642100,-500.0,8.493e-05,2]
[420629164,1776372642110,-1226.06,8.493e-05,2]
[420629165,1776372642119,-500.0,8.493e-05,2]
[420629166,1776372642128,-500.0,8.493e-05,2]
[420629167,1776372642138,-3015.5,8.493e-05,2]
[420629168,1776372642147,-500.0,8.493e-05,2]
[420629169,1776372642157,-500.0,8.493e-05,2]
[420629170,1776372642166,-500.0,8.493e-05,2]
[420629171,1776372642176,-500.0,8.493e-05,2]
[420629172,1776372642185,-2146.8,8.493e-05,2]
[420629173,1776372642194,-7983.39,8.493e-05,2]
[420629174,1776372642204,-540.01,8.493e-05,2]
[420629175,1776372642213,-500.0,8.493e-05,2]
[420629176,1776372642222,-500.0,8.493e-05,2]
[420629177,1776372642232,-500.0,8.493e-05,2]
[420629178,1776372642241,-2874.33,8.493e-05,2]
[420629179,1776372642250,-500.0,8.493e-05,2]
[420629180,1776372642260,-7037.76,8.493e-05,2]
[420629181,1776372642269,-501.0,8.493e-05,2]
[420629182,1776372642278,-1488.68,8.493e-05,2]
[420629183,1776372642288,-500.0,8.493e-05,2]
[420629184,1776372642297,-6664.8,8.493e-05,2]
[420629185,1776372642306,-500.0,8.493e-05,2]
[420629186,1776372642315,-1028.49,8.493e-05,2]
[420629187,1776372642325,-500.0,8.493e-05,2]
[420629188,1776372642334,-1224.48,8.493e-05,2]
[420629189,1776372642343,-500.0,8.493e-05,2]
[420629190,1776372642352,-3746.2,8.493e-05,2]
[420629191,1776372642360,-500.0,8.493e-05,2]
[420629192,1776372642369,-500.0,8.493e-05,2]
[420629193,1776372642378,-2181.03,8.493e-05,2]
[420629194,1776372642387,-604.82,8.493e-05,2]
[420629195,1776372642396,-1390.27,8.493e-05,2]
[420629196,1776372642406,-3854.84,8.493e-05,2]
[420629197,1776372642415,-500.0,8.493e-05,2]
[420629198,1776372642425,-522.02,8.493e-05,2]
[420629199,1776372642434,-535.7,8.493e-05,2]
[420629200,1776372642443,-1174.18,8.493e-05,2]
[420629201,1776372642454,-683.4,8.493e-05,2]
[420629202,1776372642463,-500.0,8.493e-05,2]
[420629203,1776372642473,-2920.99,8.493e-05,2]
[420629204,1776372642482,-500.0,8.493e-05,2]
[420629205,1776372642492,-7115.79,8.493e-05,2]
[420629206,1776372642501,-500.0,8.493e-05,2]
[420629207,1776372642509,-936.42,8.493e-05,2]
[420629208,1776372642519,-500.0,8.493e-05,2]
[420629209,1776372642528,-500.0,8.493e-05,2]
[420629210,1776372642537,-1020.89,8.493e-05,2]
[420629211,1776372642546,-5399.41,8.493e-05,2]
[420629212,1776372642555,-500.0,8.493e-05,2]
[420629213,1776372642564,-1160.57,8.493e-05,2]
[420629214,1776372642574,-747.26,8.493e-05,2]
[420629215,1776372642583,-2104.89,8.493e-05,2]
[420629216,1776372642593,-500.0,8.493e-05,2]
[420629217,1776372642602,-500.0,8.493e-05,2]
[420629218,1776372642611,-500.0,8.493e-05,2]
[420629219,1776372642620,-500.0,8.493e-05,2]
[420629220,1776372642629,-7448.83,8.493e-05,2]
[420629221,1776372642639,-500.0,8.493e-05,2]
[420629222,1776372642647,-500.0,8.493e-05,2]
[420629223,1776372642657,-500.0,8.493e-05,2]
[420629224,1776372642665,-567.73,8.493e-05,2]
[420629225,1776372642675,-4948.78,8.493e-05,2]
[420629226,1776372642684,-500.0,8.493e-05,2]
[420629227,1776372642693,-5523.74,8.493e-05,2]
[420629228,1776372642703,-500.0,8.493e-05,2]
[420629230,1776372642712,-1785.06,8.493e-05,2]
[420629232,1776372642721,-25336.25,8.493e-05,2]
[420629233,1776372642729,-866.02,8.493e-05,2]
[420629235,1776372642739,-1561.33,8.493e-05,2]
[420629236,1776372642748,-771.26,8.493e-05,2]
[420629237,1776372642757,-727.27,8.493e-05,2]
[420629238,1776372642766,-2291.08,8.493e-05,2]
[420629239,1776372642775,-1356.16,8.493e-05,2]
[420629240,1776372642783,-7069.32,8.493e-05,2]
[420629241,1776372642793,-321.10623289,8.493e-05,2]
[420629242,1776372642802,-914.05,8.493e-05,2]
[420629243,1776372642812,-12938.94,8.493e-05,2]
[420629244,1776372642821,-1697.58,8.493e-05,2]
[420629245,1776372642831,-769.57,8.493e-05,2]
[420629247,1776372642840,-655.68,8.493e-05,2]
[420629248,1776372642849,-8592.3,8.493e-05,2]
[420629249,1776372642858,-707.34,8.493e-05,2]
[420629250,1776372642868,-1000.0,8.493e-05,2]
[420629252,1776372642877,-6980.53,8.493e-05,2]
[420629254,1776372642886,-500.0,8.493e-05,2]
[420629255,1776372642895,-3251.14,8.493e-05,2]
[420629256,1776372642903,-500.0,8.493e-05,2]
[420629257,1776372642913,-500.0,8.493e-05,2]
[420629258,1776372642923,-1018.33,8.493e-05,2]
[420629260,1776372642932,-6334.52,8.493e-05,2]
[420629262,1776372642941,-500.0,8.493e-05,2]
[420629263,1776372642950,-500.0,8.493e-05,2]
[420629265,1776372642959,-500.0,8.535e-05,2]
[420629266,1776372642968,-500.0,8.578e-05,2]
[420629267,1776372642977,-800.0,8.594e-05,2]
[420629268,1776372642987,-5392.88728381,8.602e-05,2]
[420629269,1776372642996,-500.0,8.609e-05,2]
[420629270,1776372643005,-500.0,8.609e-05,2]
[420629271,1776372643014,-500.0,8.615e-05,2]
[420629272,1776372643023,-360.28346831,8.615e-05,2]
[420629274,1776372643032,-500.0,8.615e-05,2]
[420629276,1776372643042,-235.79986108,8.615e-05,2]
[420629278,1776372643051,-173.8711568,8.712e-05,2]
[420629279,1776372643059,-166.6521906,8.712e-05,2]
[420629280,1776372643069,-461.67526834,8.728e-05,2]
[420629281,1776372643078,-213.06571399,8.728e-05,2]
[420629283,1776372643087,-557.5788265,8.728e-05,2]
[420629285,1776372643096,-2230.315306,8.728e-05,2]
[420629287,1776372643105,-800.0,8.736e-05,2]
[420629289,1776372643114,-168.3888056,8.762e-05,2]
[420629291,1776372643123,-1169.0452,8.767e-05,2]
[420629293,1776372643133,-500.0,8.767e-05,2]
[420629295,1776372643142,-275.44156051,8.767e-05,2]
[420629297,1776372643151,-500.0,8.767e-05,2]
[420629299,1776372643161,-500.0,8.767e-05,2]
[420629301,1776372643170,-500.0,8.767e-05,2]
[420629302,1776372643179,-1072.02,8.767e-05,2]
[420629304,1776372643189,-500.0,8.767e-05,2]
[420629305,1776372643198,-500.0,8.767e-05,2]
[420629306,1776372643207,-1181.47,8.767e-05,2]
[420629307,1776372643217,-500.0,8.767e-05,2]
[420629308,1776372643226,-500.0,8.767e-05,2]
[420629309,1776372643235,-500.0,8.767e-05,2]
[420629310,1776372643244,-1002.16,8.767e-05,2]
[420629311,1776372643254,-602.86,8.767e-05,2]
[420629312,1776372643263,-500.0,8.767e-05,2]
[420629313,1776372643272,-500.0,8.767e-05,2]
[420629314,1776372643281,-1183.2,8.767e-05,2]
[420629315,1776372643290,-500.0,8.767e-05,2]
[420629316,1776372643300,-500.0,8.767e-05,2]
[420629317,1776372643309,-500.0,8.767e-05,2]
[420629318,1776372643318,-2025.12,8.767e-05,2]
[420629319,1776372643327,-500.0,8.767e-05,2]
[420629320,1776372643337,-528.32,8.767e-05,2]
[420629321,1776372643346,-909.41,8.767e-05,2]
[420629322,1776372643355,-500.0,8.767e-05,2]
[420629323,1776372643364,-971.66,8.767e-05,2]
[420629324,1776372643374,-500.0,8.767e-05,2]
[420629325,1776372643383,-511.29,8.767e-05,2]
[420629326,1776372643393,-796.63,8.767e-05,2]
[420629327,1776372643402,-500.0,8.767e-05,2]
[420629328,1776372643412,-500.0,8.767e-05,2]
[420629329,1776372643421,-1614.92,8.767e-05,2]
[420629330,1776372643431,-1841.84,8.767e-05,2]
[420629331,1776372643440,-641.21,8.767e-05,2]
[420629332,1776372643449,-1252.37,8.767e-05,2]
[420629333,1776372643459,-500.0,8.767e-05,2]
[420629334,1776372643469,-500.0,8.767e-05,2]
[420629335,1776372643479,-578.62,8.767e-05,2]
[420629336,1776372643488,-500.0,8.767e-05,2]
[420629337,1776372643498,-573.51,8.767e-05,2]
[420629338,1776372643507,-500.0,8.767e-05,2]
[420629339,1776372643516,-500.0,8.767e-05,2]
[420629340,1776372643526,-828.64,8.767e-05,2]
[420629341,1776372643535,-1499.55,8.767e-05,2]
[420629342,1776372643545,-196.0764055,8.767e-05,2]
[420629343,1776372643554,-174.97401369,8.767e-05,2]
[420629344,1776372643563,-500.0,8.767e-05,2]
[420629345,1776372643573,-594.04,8.767e-05,2]
[420629346,1776372643582,-967.34,8.767e-05,2]
[420629347,1776372643591,-500.0,8.767e-05,2]
[420629348,1776372643601,-500.0,8.767e-05,2]
[420629349,1776372643612,-500.0,8.767e-05,2]
[420629350,1776372643622,-532.52,8.767e-05,2]
[420629351,1776372643631,-500.0,8.767e-05,2]
[420629352,1776372643640,-500.0,8.767e-05,2]
[420629353,1776372643649,-500.0,8.767e-05,2]
[420629354,1776372643659,-500.0,8.767e-05,2]
[420629355,1776372643668,-500.0,8.767e-05,2]
[420629356,1776372643677,-500.0,8.767e-05,2]
[420629357,1776372643687,-1226.06,8.767e-05,2]
[420629358,1776372643696,-500.0,8.767e-05,2]
[420629359,1776372643705,-500.0,8.767e-05,2]
[420629360,1776372643715,-3015.5,8.767e-05,2]
[420629361,1776372643724,-500.0,8.767e-05,2]
[420629362,1776372643733,-500.0,8.767e-05,2]
[420629363,1776372643743,-500.0,8.767e-05,2]
[420629364,1776372643752,-500.0,8.767e-05,2]
[420629365,1776372643761,-2146.8,8.767e-05,2]
[420629366,1776372643771,-7983.39,8.767e-05,2]
[420629367,1776372643780,-540.01,8.767e-05,2]
[420629368,1776372643790,-500.0,8.767e-05,2]
[420629369,1776372643799,-500.0,8.767e-05,2]
[420629370,1776372643809,-500.0,8.767e-05,2]
[420629371,1776372643818,-2874.33,8.767e-05,2]
[420629372,1776372643828,-500.0,8.767e-05,2]
[420629373,1776372643837,-7037.76,8.767e-05,2]
[420629374,1776372643847,-501.0,8.767e-05,2]
[420629375,1776372643856,-1488.68,8.767e-05,2]
[420629376,1776372643865,-500.0,8.767e-05,2]
[420629377,1776372643874,-6664.8,8.767e-05,2]
[420629378,1776372643884,-500.0,8.767e-05,2]
[420629379,1776372643893,-1028.49,8.767e-05,2]
[420629380,1776372643902,-500.0,8.767e-05,2]
[420629381,1776372643912,-1224.48,8.767e-05,2]
[420629382,1776372643922,-500.0,8.767e-05,2]
[420629383,1776372643931,-3746.2,8.767e-05,2]
[420629384,1776372643940,-500.0,8.767e-05,2]
[420629385,1776372643949,-500.0,8.767e-05,2]
[420629386,1776372643959,-2181.03,8.767e-05,2]
[420629387,1776372643969,-604.82,8.767e-05,2]
[420629388,1776372643979,-1390.27,8.767e-05,2]
[420629389,1776372643988,-3854.84,8.767e-05,2]
[420629390,1776372643998,-522.02,8.767e-05,2]
[420629391,1776372644007,-500.0,8.767e-05,2]
[420629392,1776372644016,-1174.18,8.767e-05,2]
[420629393,1776372644026,-683.4,8.767e-05,2]
[420629394,1776372644035,-500.0,8.767e-05,2]
[420629395,1776372644045,-2920.99,8.767e-05,2]
[420629396,1776372644054,-500.0,8.767e-05,2]
[420629397,1776372644064,-7115.79,8.767e-05,2]
[420629398,1776372644073,-351.64915535,8.767e-05,2]
[420629399,1776372644082,-936.42,8.767e-05,2]
[420629400,1776372644092,-500.0,8.767e-05,2]
[420629401,1776372644102,-500.0,8.767e-05,2]
[420629402,1776372644112,-1020.89,8.767e-05,2]
[420629403,1776372644121,-5399.41,8.767e-05,2]
[420629404,1776372644131,-500.0,8.767e-05,2]
[420629405,1776372644140,-1160.57,8.767e-05,2]
[420629406,1776372644149,-747.26,8.767e-05,2]
[420629407,1776372644161,-2104.89,8.767e-05,2]
[420629408,1776372644170,-500.0,8.767e-05,2]
[420629409,1776372644180,-500.0,8.767e-05,2]
[420629410,1776372644189,-500.0,8.767e-05,2]
[420629411,1776372644199,-500.0,8.767e-05,2]
[420629412,1776372644208,-7448.83,8.767e-05,2]
[420629413,1776372644217,-500.0,8.767e-05,2]
[420629414,1776372644227,-500.0,8.767e-05,2]
[420629415,1776372644236,-500.0,8.767e-05,2]
[420629416,1776372644245,-4948.78,8.767e-05,2]
[420629417,1776372644255,-500.0,8.767e-05,2]
[420629418,1776372644266,-5523.74,8.767e-05,2]
[420629419,1776372644275,-500.0,8.767e-05,2]
[420629420,1776372644285,-1785.06,8.767e-05,2]
[420629421,1776372644295,-25336.25,8.767e-05,2]
[420629422,1776372644304,-866.02,8.767e-05,2]
[420629423,1776372644313,-1561.33,8.767e-05,2]
[420629424,1776372644323,-771.26,8.767e-05,2]
[420629425,1776372644332,-727.27,8.767e-05,2]
[420629426,1776372644341,-2291.08,8.767e-05,2]
[420629427,1776372644351,-1356.16,8.767e-05,2]
[420629428,1776372644361,-7069.32,8.767e-05,2]
[420629429,1776372644370,-914.05,8.767e-05,2]
[420629430,1776372644379,-12938.94,8.767e-05,2]
[420629431,1776372644388,-1697.58,8.767e-05,2]
[420629432,1776372644397,-769.57,8.767e-05,2]
[420629433,1776372644406,-655.68,8.767e-05,2]
[420629434,1776372644415,-8592.3,8.767e-05,2]
[420629435,1776372644426,-707.34,8.767e-05,2]
[420629436,1776372644435,-6980.53,8.767e-05,2]
[420629437,1776372644444,-500.0,8.767e-05,2]
[420629438,1776372644454,-3251.14,8.767e-05,2]
[420629439,1776372644463,-500.0,8.767e-05,2]
[420629440,1776372644472,-500.0,8.767e-05,2]
[420629441,1776372644481,-1018.33,8.767e-05,2]
[420629442,1776372644491,-6334.52,8.767e-05,2]
[420629443,1776372644500,-463.81651673,8.767e-05,2]
[420629444,1776372644509,-500.0,8.767e-05,2]
[420629445,1776372644518,-6855.6592323,8.767e-05,2]
[420629446,1776372644528,-720.0,8.883e-05,2]
[420629447,1776372644538,-1000.0,8.897e-05,2]
[420629448,1776372644708,-5000.0,9e-05,2]
[420629449,1776372644717,-1342.56759051,9e-05,2]
[420629450,1776372644727,-155.0,9.04e-05,2]
[420629451,1776372644737,-1332.9244,9.041e-05,2]
[420629452,1776372644747,-500.0,9.041e-05,2]
[420629453,1776372644756,-500.0,9.041e-05,2]
[420629454,1776372644765,-500.0,9.041e-05,2]
[420629455,1776372644774,-1072.02,9.041e-05,2]
[420629456,1776372644783,-500.0,9.041e-05,2]
[420629457,1776372644792,-500.0,9.041e-05,2]
[420629458,1776372644802,-1181.47,9.041e-05,2]
[420629459,1776372644812,-500.0,9.041e-05,2]
[420629460,1776372644821,-500.0,9.041e-05,2]
[420629461,1776372644830,-500.0,9.041e-05,2]
[420629462,1776372644839,-1002.16,9.041e-05,2]
[420629463,1776372644848,-602.86,9.041e-05,2]
[420629464,1776372644858,-500.0,9.041e-05,2]
[420629465,1776372644868,-500.0,9.041e-05,2]
[420629466,1776372644877,-1183.2,9.041e-05,2]
[420629467,1776372644886,-496.86397403,9.041e-05,2]
[420629468,1776372644895,-500.0,9.041e-05,2]
[420629469,1776372644904,-500.0,9.041e-05,2]
[420629470,1776372644913,-2025.12,9.041e-05,2]
[420629471,1776372644922,-500.0,9.041e-05,2]
[420629472,1776372644931,-528.32,9.041e-05,2]
[420629473,1776372644940,-909.41,9.041e-05,2]
[420629474,1776372644950,-500.0,9.041e-05,2]
[420629475,1776372644959,-971.66,9.041e-05,2]
[420629476,1776372644968,-500.0,9.041e-05,2]
[420629477,1776372644978,-511.29,9.041e-05,2]
[420629478,1776372644987,-796.63,9.041e-05,2]
[420629479,1776372644996,-500.0,9.041e-05,2]
[420629480,1776372645005,-500.0,9.041e-05,2]
[420629481,1776372645014,-1614.92,9.041e-05,2]
[420629482,1776372645023,-1841.84,9.041e-05,2]
[420629483,1776372645033,-641.21,9.041e-05,2]
[420629484,1776372645042,-1252.37,9.041e-05,2]
[420629485,1776372645052,-500.0,9.041e-05,2]
[420629486,1776372645062,-500.0,9.041e-05,2]
[420629487,1776372645071,-578.62,9.041e-05,2]
[420629488,1776372645085,-500.0,9.041e-05,2]
[420629489,1776372645094,-573.51,9.041e-05,2]
[420629490,1776372645103,-500.0,9.041e-05,2]
[420629491,1776372645114,-227.29019799,9.041e-05,2]
[420629492,1776372645124,-828.64,9.041e-05,2]
[420629493,1776372645134,-1499.55,9.041e-05,2]
[420629494,1776372645143,-500.0,9.041e-05,2]
[420629495,1776372645153,-594.04,9.041e-05,2]
[420629496,1776372645162,-500.0,9.041e-05,2]
[420629497,1776372645171,-967.34,9.041e-05,2]
[420629498,1776372645181,-500.0,9.041e-05,2]
[420629499,1776372645190,-500.0,9.041e-05,2]
[420629500,1776372645200,-532.52,9.041e-05,2]
[420629501,1776372645209,-500.0,9.041e-05,2]
[420629502,1776372645218,-500.0,9.041e-05,2]
[420629503,1776372645228,-500.0,9.041e-05,2]
[420629504,1776372645238,-500.0,9.041e-05,2]
[420629505,1776372645247,-500.0,9.041e-05,2]
[420629506,1776372645256,-500.0,9.041e-05,2]
[420629507,1776372645266,-1226.06,9.041e-05,2]
[420629508,1776372645275,-500.0,9.041e-05,2]
[420629509,1776372645284,-500.0,9.041e-05,2]
[420629510,1776372645294,-3015.5,9.041e-05,2]
[420629511,1776372645303,-500.0,9.041e-05,2]
[420629512,1776372645312,-500.0,9.041e-05,2]
[420629513,1776372645322,-500.0,9.041e-05,2]
[420629514,1776372645332,-500.0,9.041e-05,2]
[420629515,1776372645341,-2146.8,9.041e-05,2]
[420629516,1776372645350,-7983.39,9.041e-05,2]
[420629517,1776372645359,-540.01,9.041e-05,2]
[420629518,1776372645368,-500.0,9.041e-05,2]
[420629519,1776372645377,-500.0,9.041e-05,2]
[420629520,1776372645387,-500.0,9.041e-05,2]
[420629521,1776372645396,-2874.33,9.041e-05,2]
[420629522,1776372645405,-500.0,9.041e-05,2]
[420629523,1776372645414,-7037.76,9.041e-05,2]
[420629524,1776372645424,-501.0,9.041e-05,2]
[420629525,1776372645433,-1488.68,9.041e-05,2]
[420629526,1776372645446,-500.0,9.041e-05,2]
[420629527,1776372645456,-6664.8,9.041e-05,2]
[420629528,1776372645465,-500.0,9.041e-05,2]
[420629529,1776372645474,-1028.49,9.041e-05,2]
[420629530,1776372645483,-500.0,9.041e-05,2]
[420629531,1776372645493,-1224.48,9.041e-05,2]
[420629532,1776372645502,-500.0,9.041e-05,2]
[420629533,1776372645511,-3746.2,9.041e-05,2]
[420629534,1776372645522,-500.0,9.041e-05,2]
[420629535,1776372645531,-500.0,9.041e-05,2]
[420629536,1776372645540,-2181.03,9.041e-05,2]
[420629537,1776372645549,-604.82,9.041e-05,2]
[420629538,1776372645559,-1390.27,9.041e-05,2]
[420629539,1776372645568,-3854.84,9.041e-05,2]
[420629540,1776372645578,-522.02,9.041e-05,2]
[420629541,1776372645587,-500.0,9.041e-05,2]
[420629542,1776372645596,-1174.18,9.041e-05,2]
[420629543,1776372645605,-683.4,9.041e-05,2]
[420629544,1776372645615,-500.0,9.041e-05,2]
[420629545,1776372645625,-2920.99,9.041e-05,2]
[420629546,1776372645634,-500.0,9.041e-05,2]
[420629547,1776372645644,-7115.79,9.041e-05,2]
[420629548,1776372645653,-936.42,9.041e-05,2]
[420629549,1776372645663,-500.0,9.041e-05,2]
[420629550,1776372645672,-500.0,9.041e-05,2]
[420629551,1776372645681,-1020.89,9.041e-05,2]
[420629552,1776372645691,-5399.41,9.041e-05,2]
[420629553,1776372645701,-500.0,9.041e-05,2]
[420629554,1776372645710,-1160.57,9.041e-05,2]
[420629555,1776372645719,-747.26,9.041e-05,2]
[420629556,1776372645729,-1308.81876291,9.041e-05,2]
[420629557,1776372645747,-648.44071828,9.041e-05,2]
[420629558,1776372645874,-514.59,8.219e-05,2]
[420629559,1776372645883,-64.27673314,8.219e-05,2]
[420629560,1776372646192,-435.72326686,8.219e-05,2]
[420629561,1776372646201,-208.6183108,8.493e-05,2]
[420629562,1776372646213,-291.3816892,8.493e-05,2]
[420629563,1776372646223,-500.0,8.767e-05,2]
[420629564,1776372646232,-147.63051881,9.041e-05,2]
[420629565,1776372646242,-39.12511308,9.041e-05,2]
[420629566,1776372646254,-386.86491788,9.041e-05,2]
[420629567,1776372646263,-500.0,9.041e-05,2]
[420629568,1776372646273,-500.0,9.041e-05,2]
[420629569,1776372646282,-396.02986566,9.041e-05,2]
[420629570,1776372646294,-103.97013434,9.041e-05,2]
[420629571,1776372646303,-518.09025803,9.041e-05,2]
[420629572,1776372646314,-6930.73974197,9.041e-05,2]
[420629573,1776372646324,-304.57171783,9.041e-05,2]
[420629574,1776372646333,-303.12450185,9.041e-05,2]
[420629575,1776372646343,-68.6167787,9.041e-05,2]
[420629576,1776372646558,-4880.1632213,9.041e-05,2]
[420629577,1776372646568,-500.0,9.041e-05,2]
[420629578,1776372646577,-5523.74,9.041e-05,2]
[420629579,1776372646586,-500.0,9.041e-05,2]
[420629580,1776372646596,-1785.06,9.041e-05,2]
[420629581,1776372646606,-6228.89681642,9.041e-05,2]
[420629582,1776372646617,-19107.35318358,9.041e-05,2]
[420629583,1776372646627,-866.02,9.041e-05,2]
[420629584,1776372646636,-1561.33,9.041e-05,2]
[420629585,1776372646645,-771.26,9.041e-05,2]
[420629586,1776372646654,-727.27,9.041e-05,2]
[420629587,1776372646663,-2291.08,9.041e-05,2]
[420629588,1776372646673,-1356.16,9.041e-05,2]
[420629589,1776372646682,-7069.32,9.041e-05,2]